[Event "Romanian Team Blitz Open 2022"]
[Site "Sebes"]
[Date "2022.12.04"]
[Round "7.15"]
[White "Stoleriu, George"]
[Black "Danila, Tudor-Gabriel"]
[Result "1/2-1/2"]
[ECO "B23"]
[WhiteElo "2389"]
[BlackElo "1939"]
[Annotator "TA"]
[PlyCount "115"]
[EventDate "2022.12.04"]
[EventType "blitz"]
[EventCountry "ROU"]
[SourceTitle "playchess.com"]
[Source "ChessBase"]
[SourceQuality "1"]
[TimeControl "180+2"]

{[%evp 9,115,0,5,-14,-14,-5,0,-7,-8,0,0,-25,77,0,0,-12,-5,-10,-2,0,25,10,16,0,21,16,22,13,89,0,0,0,0,0,0,0,10,0,0,0,13,0,0,0,0,-16,-12,-16,0,0,0,-304,-304,-556,-544,-562,-480,-758,-746,-1426,-1274,-12839,-12834,-29983,-29983,-29992,-12843,-12843,-12836,-12839,-12837,-12837,-12837,-12837,-12838,-12838,-12837,-12838,-12838,-12840,-1457,-726,0,0,0,0,0,0,0,0,0,0,0,0,0,-27996,0,0,0,0,0,0,0,0,0,0,0,0]} 1. e4 {[%emt 0:03:04]} c5 {[%emt 0:03:04]} 2. Nc3 d6 {[%emt 0:00:02]} 3. Bb5+ {[%emt 0:00:04]} Bd7 {[%emt 0:00:02]} 4. a4 {[%emt 0:00:02]} a6 {[%emt 0:00:02]} 5. Bxd7+ {[%emt 0:00:02]} Qxd7 {[%emt 0:00:02]} 6. f4 {B23: Closed Sicilian: Lines without g3.} Nc6 {[%emt 0:00:02]} 7. Nf3 g6 8. O-O {[%emt 0:00:06]} Bg7 9. d3 {[%emt 0:00:02]} e6 10. f5 {[%emt 0:00:02] [#]} exf5 $146 {[%emt 0:00:08]} (10... Nf6 $11) ({Predecessor:} 10... O-O-O 11. fxe6 fxe6 12. Ng5 Ne5 13. Bf4 Nh6 14. a5 Qc7 15. Nxe6 Qe7 16. Nxd8 Rxd8 {1-0 (31) Palomares,D-Argote Heredia,V (1856) Cali 2012}) 11. exf5 (11. Nd5 $16) 11... Nge7 $11 {[%emt 0:00:02]} 12. fxg6 {[%emt 0:00:04]} hxg6 {[%emt 0:00:02]} 13. Bf4 {[%emt 0:00:02]} O-O {[%emt 0:00:02]} 14. Qd2 {[%emt 0:00:02]} Rab8 {[%emt 0:00:02]} 15. Rae1 {[%emt 0:00:02]} Nd4 {[%emt 0:00:02]} 16. Nxd4 {[%emt 0:00:02]} (16. Bh6 {keeps more tension.} Rbe8 17. Bxg7 Kxg7 18. Ne4) 16... Bxd4+ 17. Kh1 {[%emt 0:00:02]} Rbd8 {[%emt 0:00:04]} 18. Bh6 {[%emt 0:00:02]} Bg7 {[%emt 0:00:02]} (18... Rfe8 $1 $11 {remains equal.}) 19. Bg5 {[%emt 0:00:02] White is more active.} (19. Bxg7 $16 {Intending Qh6 and mate.} Kxg7 20. Ne4) 19... Rde8 {[%emt 0:00:02]} 20. b3 {[%emt 0:00:02]} b5 {[%emt 0:00:02]} 21. axb5 {[%emt 0:00:02]} axb5 {[%emt 0:00:02]} 22. Bxe7 {[%emt 0:00:02]} Rxe7 {[%emt 0:00:02]} 23. Rxe7 Qxe7 24. Nxb5 {[%emt 0:00:04]} Re8 {[%emt 0:00:04]} 25. Nc3 {[%emt 0:00:02]} Qe5 $40 {[%emt 0:00:02][%mdl 128] Black is up to no good.} 26. Ne4 {[%emt 0:00:02]} f5 {[%emt 0:00:02]} 27. Ng3 {[%emt 0:00:02]} Kh7 {[%emt 0:00:02][%mdl 1024] Black has compensation.} 28. Qd1 {[%emt 0:00:02]} d5 {[%emt 0:00:02] [#] Threatens to win with ...f4.} 29. Qf3 {[%emt 0:00:02] Prevents f4.} Bh6 {[%emt 0:00:02] Strongly threatening ...f4.} 30. h3 $2 {[%emt 0:00:02][%mdl 8192]} (30. Rf2 $11) 30... f4 $19 {[%emt 0:00:02]} 31. d4 $2 {[%emt 0:00:02]} (31. Kh2 {keeps fighting.} fxg3+ 32. Qxg3) 31... cxd4 {[%emt 0:00:02]} ({Weaker is} 31... Qxd4 32. Ne2 Qe4 33. Nc3 (33. Nxf4 $2 {too greedy.} Rf8 $19) 33... Qxf3 34. gxf3 $11) 32. Nh5 {[%emt 0:00:02]} gxh5 {[%emt 0:00:02]} 33. Ra1 {[%emt 0:00:02]} (33. b4 $142) 33... Bg7 {[%emt 0:00:02]} 34. Kh2 {[%emt 0:00:02]} Qg5 {[%emt 0:00:02] And now ...Re3 would win.} 35. Kh1 {[%emt 0:00:02]} Re3 {[%emt 0:00:02]} 36. Qf1 {[%emt 0:00:02]} Qg3 {[%emt 0:00:02]} 37. Rd1 {[%emt 0:00:02]} f3 {[%emt 0:00:02]} (37... Be5 $142 38. Qg1 f3 39. Ra1 f2 40. Ra7+ Kg6 41. Ra6+ Kf5 42. Rf6+ Kxf6 43. Qxf2+ Qxf2 44. g4 Rxh3#) 38. gxf3 {[%emt 0:00:02]} Rxf3 {[%emt 0:00:02]} 39. Qg2 Qxh3+ {[%emt 0:00:02]} 40. Qxh3 {[%emt 0:00:04]} Rxh3+ {[%mdl 4096] Endgame KRB-KR} 41. Kg2 Rc3 {[%emt 0:00:04]} 42. Rd2 Bh6 43. Rxd4 {[%emt 0:00:06]} Rxc2+ {[%emt 0:00:04]} 44. Kh3 {[%emt 0:00:02]} Rc3+ {[%emt 0:00:02]} 45. Kh4 Rxb3 $2 {[%emt 0:00:02]} (45... Rc5 $19 {Hoping for ...Be3.} 46. Kxh5 Be3) 46. Rxd5 $11 {[%emt 0:00:04]} Rb1 {[%emt 0:00:02] aiming for ...Rh1+.} 47. Kxh5 {[%emt 0:00:02]} Rg1 {[%emt 0:00:02]} 48. Rd7+ {[%emt 0:00:02]} Bg7 49. Rd6 {[%emt 0:00:02]} Kg8 {[%emt 0:00:04]} 50. Rd8+ {[%emt 0:00:02]} Kf7 51. Rd7+ Kf6 {[%emt 0:00:04]} 52. Rd6+ {[%emt 0:00:04] [#]} Ke5 $2 {[%emt 0:00:02]} ({Black should play} 52... Kf5 $1 {[%cal Rg1h1]} 53. Kh4 Rh1+ 54. Kg3 Be5+ 55. Kg2 Rh2+ 56. Kf3 Rh3+ 57. Ke2 Bxd6 58. Kd2 Be5 59. Kd1 Rh2 60. Kc1 Bh8 61. Kb1 Ke4 62. Kc1 Kd3 63. Kb1 Bc3 64. Kc1 Rh1#) 53. Rg6 {[%emt 0:00:02] The position is equal.} Rh1+ {[%emt 0:00:02]} 54. Kg4 Rg1+ {[%emt 0:00:02]} 55. Kh5 Rh1+ {[%emt 0:00:02]} 56. Kg4 Rg1+ {[%emt 0:00:02]} 57. Kh5 {[%emt 0:00:08]} Ra1 {[%emt 0:00:02]} 58. Rxg7 {[%emt 0:00:02] Weighted Error Value: White=0.81/Black=0.28 (precise)} 1/2-1/2

[Event "Romanian Team Blitz Open 2022"]
[Site "Sebes"]
[Date "2022.12.04"]
[Round "7.16"]
[White "Mainescu, Andrei-Cristian"]
[Black "Zubcu, Vlad-George"]
[Result "0-1"]
[ECO "A04"]
[WhiteElo "1860"]
[BlackElo "2135"]
[Annotator "TA"]
[PlyCount "60"]
[EventDate "2022.12.04"]
[EventType "blitz"]
[EventCountry "ROU"]
[SourceTitle "playchess.com"]
[Source "ChessBase"]
[SourceQuality "1"]
[TimeControl "180+2"]

{[%evp 9,60,38,31,26,28,6,29,0,4,-30,21,-6,-6,-15,-10,-26,-8,-13,-16,-43,-39,-45,-55,-202,-200,-334,-338,-351,-344,-305,-206,-200,-195,-186,-189,-213,-213,-211,-206,-215,-210,-215,-202,-335,-236,-229,-236,-252,-236,-237,-236,-743,-711]} 1. e4 {[%emt 0:00:02]} c5 {[%emt 0:00:00]} 2. Nf3 {[%emt 0:00:02]} e6 {[%emt 0:00:01]} 3. g3 {[%emt 0:00:00]} g6 {[%emt 0:00:02]} 4. Bg2 {[%emt 0:00:05]} Bg7 {[%emt 0:00:01]} 5. O-O {[%emt 0:00:03]} Nc6 {[%emt 0:00:01]} 6. c3 {[%emt 0:00:02] A04: Unusual lines after 1 Nf3 and King's Indian Attack.} Nge7 {[%emt 0:00:03]} 7. Re1 {[%emt 0:00:09]} O-O {[%emt 0:00:02] [#]} 8. a4 $146 {[%emt 0:00:02] White has an edge.} ({Predecessor:} 8. d4 cxd4 9. cxd4 d5 10. e5 Qb6 11. Nc3 Nf5 12. Ne2 h5 13. h3 Bd7 14. g4 hxg4 15. hxg4 {0-1 (45) Murzin,V (2478)-Golizadeh,A (2455) Chess.com INT 2021}) 8... d5 {[%emt 0:00:06]} 9. exd5 {[%emt 0:00:09]} Nxd5 {[%emt 0:00:12]} (9... exd5 $142 10. d3 Bf5) 10. d4 {[%emt 0:00:52]} cxd4 {[%emt 0:00:01]} 11. cxd4 {[%emt 0:00:01]} b6 {[%emt 0:00:11]} 12. Nc3 {[%emt 0:00:05]} Nxc3 {[%emt 0:00:31]} 13. bxc3 {[%emt 0:01:56]} Bb7 14. Bg5 {[%emt 0:00:00]} Qc8 {[%emt 0:00:07]} 15. Qd2 {[%emt 0:00:00]} Na5 {[%emt 0:00:04][%cal Bc6a5,Ba5b3,Bb3a1][%mdl 32]} 16. Bh6 {[%emt 0:00:00] Loses the game.} (16. Qe3 $15) 16... Nb3 $1 $19 {[%emt 0:00:08][%csl LRa1,LRd2]} 17. Qf4 {[%emt 0:00:00]} (17. Qb2 $142 Nxa1 18. Bxg7 Kxg7 19. Nh4) 17... Nxa1 {[%emt 0:00:03]} (17... Qxc3 18. Bxg7 Kxg7 19. Rab1 Bxf3 20. Bxf3 $17) 18. Bxg7 {[%emt 0:00:00]} Kxg7 {[%emt 0:00:01]} 19. Rxa1 {[%emt 0:00:00]} Bxf3 {[%emt 0:00:14]} 20. Bxf3 {[%emt 0:00:00]} Rb8 {[%emt 0:00:01]} ({Not} 20... Qxc3 21. Rc1 Qa5 22. Bxa8 Rxa8 23. Rc7 $17) 21. Rc1 {[%emt 0:00:05]} Qd8 {[%emt 0:00:01]} 22. c4 {[%emt 0:00:02]} Qf6 {[%emt 0:00:02]} 23. Qe3 {[%emt 0:00:01]} Rfd8 {[%emt 0:00:04]} 24. d5 {[%emt 0:00:04]} Rbc8 {[%emt 0:00:02]} 25. Kg2 {[%emt 0:00:05]} h5 {[%emt 0:00:07][%cal Bh7h5,Bh5h4,Bh4h3][%mdl 32]} 26. a5 {[%emt 0:00:01]} (26. h4 {is a better defense.}) 26... bxa5 {[%emt 0:01:49]} 27. dxe6 {[%emt 0:00:06]} Qxe6 {[%emt 0:00:00]} 28. Qc3+ {[%emt 0:00:02]} Qf6 {[%emt 0:00:00] Hoping for ...Qxc3.} 29. Qxa5 {[%emt 0:00:01]} h4 {[%emt 0:00:00][%cal Oh4h3] [#] Threatens to win with ...h3+!} ({Don't go for} 29... Rd3 $2 30. Be4 Rd7 31. Bd5) 30. c5 $2 {[%emt 0:00:01] Against h3+} (30. Qa1) 30... h3+ {[%emt 0:00:00] Weighted Error Value: White=0.53/Black=0.17 (very precise)} 0-1

[Event "Romanian Team Blitz Open 2022"]
[Site "Sebes"]
[Date "2022.12.04"]
[Round "7.17"]
[White "Costachi, Mihnea"]
[Black "Stefan, Romulus-Cristian"]
[Result "1-0"]
[ECO "A42"]
[WhiteElo "2476"]
[BlackElo "2097"]
[Annotator "TA"]
[PlyCount "85"]
[EventDate "2022.12.04"]
[EventType "blitz"]
[EventCountry "ROU"]
[SourceTitle "playchess.com"]
[Source "ChessBase"]
[SourceQuality "1"]
[TimeControl "180+2"]

{[%evp 14,85,68,67,72,70,79,80,79,56,71,56,54,59,65,69,70,56,84,66,80,71,71,97,92,104,97,91,118,75,107,68,58,58,56,52,139,72,118,65,337,348,1418,128,110,54,91,83,80,30,58,41,154,123,145,62,113,127,150,0,175,177,193,57,148,137,168,0,0,-48,8,8,59,-301]} 1. d4 {[%emt 0:00:01][%cal Bd2d4,Bd4d5][%mdl 32]} d6 {[%emt 0:00:01]} 2. c4 {[%emt 0:00:02]} g6 {[%emt 0:00:01]} 3. e4 {[%emt 0:00:01]} Bg7 {[%emt 0:00:02]} 4. Nc3 {[%emt 0:00:01]} Nc6 {[%emt 0:00:03]} 5. Be3 {[%emt 0:00:01]} e5 {[%emt 0:00:01]} 6. d5 {[%emt 0:00:01]} Nd4 {[%emt 0:00:01]} 7. Nge2 {[%emt 0:00:01]} Nxe2 {[%emt 0:00:01]} 8. Bxe2 {[%emt 0:00:01]} (8. Nxe2 Nh6 $11) 8... Bh6 {[%emt 0:00:01] A42: Modern Defence: Averbakh Variation.} 9. Bxh6 {[%emt 0:00:01]} Nxh6 {[%emt 0:00:01]} 10. Qd2 {[%emt 0:00:02]} Ng4 {[%emt 0:00:03] White is better.} 11. O-O {[%emt 0:00:06]} O-O {[%emt 0:00:04] [#]} 12. Bxg4 $146 {[%emt 0:00:10]} ({Predecessor:} 12. a4 Qe7 13. h3 Nf6 14. a5 Bd7 15. b4 Rab8 16. Qh6 b6 17. Rfc1 Rfc8 18. Ra2 {½-½ (79) Semmler,R (2391)-Milde,L (2355) ICCF email 2020}) 12... Bxg4 {[%emt 0:00:02]} 13. f4 {[%emt 0:00:01]} Bd7 {[%emt 0:00:05]} 14. fxe5 {[%emt 0:00:03]} dxe5 {[%emt 0:00:02]} 15. c5 {[%emt 0:00:07]} a5 {[%emt 0:00:24]} 16. Rad1 {[%emt 0:00:09]} Kg7 {[%emt 0:00:40]} 17. Qe3 {[%emt 0:00:15]} h6 {[%emt 0:00:16]} 18. c6 {[%emt 0:00:09]} (18. Qd3 {simplifies} Rc8 19. h3 Qe7 20. Qc4) 18... Bc8 {[%emt 0:00:01]} 19. cxb7 {[%emt 0:00:19] White has more active pieces. The black rooks are badly placed.} Bxb7 {[%emt 0:00:01]} 20. Rf2 {[%emt 0:00:15]} Ba6 {[%emt 0:00:06]} 21. Na4 {[%emt 0:00:12]} Qd6 {[%emt 0:00:04]} 22. Rc1 {[%emt 0:00:08]} (22. Nc5 {is more complex.} a4 23. h4 Bb5 24. h5) 22... Bb5 {[%emt 0:00:03] Against Rc6} 23. Nc5 {[%emt 0:00:03]} a4 {[%emt 0:00:02]} 24. Qc3 {[%emt 0:00:05]} Ra7 {[%emt 0:00:18]} (24... c6 $14) 25. h3 {[%emt 0:00:08]} (25. Qb4 $142 Bd7 26. h3) 25... Re8 {[%emt 0:00:21]} (25... c6 $142) 26. Qe3 {[%emt 0:00:05]} ({Don't do} 26. Qf3 c6 $14) (26. b3 $1 $16) 26... Qb6 $2 {[%emt 0:00:09][%mdl 8192]} (26... Rea8 $14) 27. Qf3 $1 $18 {[%emt 0:00:10]} Re7 {[%emt 0:00:01] [#]} (27... c6 28. Qf6+ Kh7) 28. Kh2 $2 {[%emt 0:00:03]} (28. Ne6+ $1 $18 {[%mdl 512] and the rest is easy.} Kh7 29. Qf6 Qxe6 30. dxe6) 28... Qd6 $16 {[%emt 0:00:10]} 29. Rfc2 {[%emt 0:00:14]} ({White should try} 29. b3 $16) 29... Qf6 {[%emt 0:00:07]} 30. Qxf6+ {[%emt 0:00:20]} Kxf6 {[%emt 0:00:01]} 31. Kg3 {[%emt 0:00:07]} (31. Rf2+ $16 Kg7 32. Rc3) 31... Kg7 {[%emt 0:00:07]} 32. Kf3 {[%emt 0:00:01]} f5 {[%emt 0:00:02]} (32... Re8 $14) 33. Ne6+ {[%emt 0:00:02]} Kf6 {[%emt 0:00:10]} 34. Rxc7 {[%emt 0:00:02]} (34. Nxc7 $16 Rb7 35. Ke3) 34... Bd3 {[%emt 0:00:08]} (34... Rexc7 $14 35. Nxc7 (35. Rxc7 Rxc7 36. Nxc7 fxe4+ 37. Kxe4 Bf1 $11) 35... Bd7) 35. exf5 {[%emt 0:00:04] Strongly threatening d6.} gxf5 {[%emt 0:00:04]} 36. Rxa7 {[%emt 0:00:11]} ({Better is} 36. d6 $16 Raxc7 37. dxc7) 36... Rxa7 {[%emt 0:00:03][%mdl 4096] Endgame KRB-KRN} (36... Be4+ $11 37. Kf2 Rxa7) 37. Nc5 $1 $18 {[%emt 0:00:04]} Bb5 {[%emt 0:00:09] [#]} 38. Ke3 {[%emt 0:00:08]} (38. g4 $1 $18) 38... Ke7 {[%emt 0:00:04]} (38... Ra8 $14) 39. g4 $16 {[%emt 0:00:03]} f4+ {[%emt 0:00:14] [#]} 40. Ke4 $2 {[%emt 0:00:01]} (40. Kf3 $1 $18) 40... Kd6 $11 {[%emt 0:00:00] aiming for ...Rc7.} 41. Ne6 {[%emt 0:00:04] Against Rc7} (41. b4 $11 {was preferrable.}) 41... Rf7 {[%emt 0:00:08]} ({Black should play} 41... Be8 $15) 42. Nd8 {[%emt 0:00:10]} Ra7 {[%emt 0:00:05]} (42... Rd7 $11 43. Nc6 f3 44. Kxf3 (44. Nxe5 Re7 $19) 44... Kxd5 45. Nb4+ Kd4) 43. Rb1 $2 {[%mdl 40960] Weighted Error Value: White=0.39/Black=0.50. Loss on time!?} (43. Nc6 $14 {stays ahead.} Rc7 44. Rc2) 1-0

[Event "Romanian Team Blitz Open 2022"]
[Site "Sebes"]
[Date "2022.12.04"]
[Round "7.18"]
[White "Arion, Ilie"]
[Black "Sfarlog, Tudor-Vlad"]
[Result "0-1"]
[ECO "B08"]
[WhiteElo "1924"]
[BlackElo "2283"]
[Annotator "TA"]
[PlyCount "130"]
[EventDate "2022.12.04"]
[EventType "blitz"]
[EventCountry "ROU"]
[SourceTitle "playchess.com"]
[Source "ChessBase"]
[SourceQuality "1"]
[TimeControl "180+2"]

{[%evp 14,130,27,16,60,35,46,44,72,48,47,38,54,20,24,0,0,0,0,0,0,-159,-101,-134,-133,-211,-215,-364,-40,-24,-27,-20,0,0,0,0,0,0,0,-233,-232,-230,-233,-229,-231,-342,-266,-278,-274,-353,-355,-357,-358,-329,-335,-443,-431,-535,-535,-535,-535,-616,-616,-540,-268,-374,-367,-356,-235,-1382,-1610,-1370,-1254,-12789,-4792,-11756,-9380,-7432,-7351,-6274,-6062,-4973,-4820,-3649,-2843,-3084,-3077,-1752,-1598,-29959,-29962,-29971,-29973,-29976,-29974,-29976,-29974,-29977,-29975,-29978,-29967,-29987,-6087,-29987,-29986,-29988,-29981,-29986,-29987,-29987,-29988,-29989,-29990,-29989,-29983,-29983,-29984,-29984,-29985]} 1. d4 {[%emt 0:00:01]} g6 {[%emt 0:00:01]} 2. e4 {[%emt 0:00:03]} Bg7 {[%emt 0:00:00]} 3. Nc3 {[%emt 0:00:03]} d6 {[%emt 0:00:01]} 4. Be3 {[%emt 0:00:01]} a6 {[%emt 0:00:02]} 5. Nf3 {[%emt 0:00:04]} Nf6 {[%emt 0:00:08]} 6. h3 {[%emt 0:00:11]} O-O {[%emt 0:00:10]} 7. a4 {[%emt 0:00:06]} Nc6 $1 {[%emt 0:00:11][%mdl 4] is recently more successful than 7...b6.} 8. Be2 {[%emt 0:00:14]} Nd7 {[%emt 0:00:29] B08: Pirc Defence: Classical System.} 9. O-O {[%emt 0:00:03]} e5 {[%emt 0:00:01]} 10. Qd2 {[%emt 0:00:11] [#]} (10. Bg5 {keeps more tension.} f6 11. Be3 exd4 12. Nxd4 Nxd4 13. Qxd4 f5 14. Qd5+) 10... a5 $146 {[%emt 0:00:11] White is slightly better.} ({Predecessor:} 10... Re8 11. Rfe1 exd4 12. Nxd4 Nxd4 13. Bxd4 Nf6 14. Bc4 Bd7 15. Rad1 Bc6 16. f3 Nh5 17. Bxg7 Kxg7 {1-0 (80) Samusenko,M (2461)-Trushnikov,S (2525) Sochi 2021}) 11. Bc4 {[%emt 0:00:03]} (11. dxe5 {simplifies} Ndxe5 12. Nxe5 dxe5 13. Qxd8 Rxd8 14. Nd5) 11... exd4 {[%emt 0:00:23]} 12. Nxd4 {[%emt 0:00:02]} Nc5 {[%emt 0:00:01]} 13. Nxc6 {[%emt 0:00:07]} bxc6 {[%emt 0:00:02]} 14. Bxc5 {[%emt 0:00:03]} dxc5 {[%emt 0:00:01]} 15. Qe3 {[%emt 0:00:17]} Bd4 {[%emt 0:00:01]} 16. Qf3 {[%emt 0:00:09]} Rb8 {[%emt 0:00:03]} 17. Bb3 $2 {[%emt 0:00:04]} ({White should play} 17. Nd1 $1 $11) 17... Qe7 {[%emt 0:00:37]} (17... Ba6 $142 $1 18. Rfd1 c4) 18. Rab1 {[%emt 0:00:11]} Rb4 {[%emt 0:00:13] Inhibits Bc4. Black is more active.} 19. Ne2 {[%emt 0:00:06] Against c4} (19. Na2 $17 Rb6 20. Rfd1) 19... Be5 $1 $19 {[%emt 0:00:01] Threatens to win with ...c4.} 20. Qd3 {[%emt 0:00:23] Prevents c4.} (20. Ba2 {might work better.}) 20... c4 $2 {[%emt 0:00:02]} (20... Rd8 $19 21. Qe3 Rxe4 $3 {[%mdl 512]} 22. Qxe4 (22. Bxf7+ $2 Kxf7 23. Qf3+ Bf6 $19) 22... Bh2+ $1 {[%mdl 512]} 23. Kxh2 Qxe4) 21. Bxc4 $15 {[%emt 0:00:02]} Rd8 {[%emt 0:00:00] Against b3} 22. Qa3 {[%emt 0:00:12]} Bxh3 {[%emt 0:00:28][%mdl 64]} 23. gxh3 {[%emt 0:00:08] aiming for Ba6.} (23. Bxf7+ {simplifies} Qxf7 24. Qxh3 Rxe4 25. Nc3) 23... Qg5+ {[%emt 0:00:00]} 24. Kh1 {[%emt 0:00:13]} Rxc4 {[%emt 0:00:02][%cal Bb4c4,Bc4c2,Bc2e2][%mdl 32]} 25. f4 {[%emt 0:00:00]} Qh5 $36 {[%emt 0:00:02][%mdl 2048] Black has the initiative.} 26. Qf3 {[%emt 0:00:17] Black continues to play with concentration.} (26. fxe5 $11 {and White is okay.} Qxe2 27. Rbe1) 26... Qxf3+ $19 {[%emt 0:00:04]} (26... Rxc2 27. Qxh5 gxh5 28. fxe5 $17) 27. Rxf3 {[%emt 0:00:01]} Rxc2 {[%emt 0:00:01]} 28. fxe5 {[%emt 0:00:03] Hoping for Nf4.} Rxe2 {[%emt 0:00:01][%mdl 4096] Endgame KRR-KRR} 29. Rbf1 {[%emt 0:00:02]} (29. e6 {keeps fighting.}) 29... Rd7 {[%emt 0:00:01]} ({Stronger than} 29... Rxb2 30. Rxf7 Rdd2 31. Rf8+ Kg7 32. R1f7+ Kh6 33. e6 $17) 30. e6 {[%emt 0:00:02]} fxe6 {[%emt 0:00:02][%cal Od7d2]} 31. Rf8+ {[%emt 0:00:01]} Kg7 {[%emt 0:00:00]} 32. R1f2 {[%emt 0:00:10]} Rxf2 {[%emt 0:00:06]} (32... Rxe4 $2 {loses.} 33. Re8 $19) 33. Rxf2 {[%emt 0:00:01] KR-KR} Rd4 {[%emt 0:00:00][%csl LRa4,LRe4]} 34. Rc2 {[%emt 0:00:03]} Rxa4 {[%emt 0:00:10]} (34... Rxe4 $2 {perishes.} 35. Rxc6 Rxa4 36. Rxc7+ Kh6 37. Ra7 $19) 35. Rxc6 {[%emt 0:00:01]} Rxe4 {[%emt 0:00:01]} 36. Rxc7+ {[%emt 0:00:01]} Kh6 {[%emt 0:00:01]} 37. Ra7 {[%emt 0:00:02]} a4 {[%emt 0:00:01]} 38. Kg2 {[%emt 0:00:02]} Re2+ {[%emt 0:00:02]} (38... Kg5 $142 39. Rb7 Rd4 40. Rxh7 Rb4) 39. Kf3 {[%emt 0:00:00]} Rxb2 {[%emt 0:00:01]} 40. Rxa4 {[%emt 0:00:01]} Kg5 {[%emt 0:00:04] Strongly threatening ...Rb3+.} 41. Re4 $2 {[%emt 0:00:08]} (41. h4+ Kf6 42. Rf4+ Ke7 43. Rg4) 41... Rb3+ {[%emt 0:00:03]} 42. Kg2 {[%emt 0:00:01]} Kf5 {[%emt 0:00:02]} 43. Ra4 {[%emt 0:00:02]} e5 {[%emt 0:00:04]} (43... h5 $142 44. h4 e5) 44. Ra5 {[%emt 0:00:01]} Rb4 {[%emt 0:00:04]} 45. Ra7 {[%emt 0:00:02]} h5 {[%emt 0:00:03][%cal Bh7h5,Bh5h4][%mdl 32]} 46. Rf7+ {[%emt 0:00:01]} Kg5 {[%emt 0:00:02]} 47. Re7 {[%emt 0:00:02]} Kf6 {[%emt 0:00:01]} 48. Re8 {[%emt 0:00:02]} Rf4 {[%emt 0:00:01] White must now prevent ...Ra4.} 49. Kg3 {[%emt 0:00:01]} h4+ {[%emt 0:00:02]} 50. Kg2 {[%emt 0:00:01]} e4 {[%emt 0:00:02][%cal Be5e4,Be4e3][%mdl 32] And now ...Kf5 would win.} 51. Rf8+ {[%emt 0:00:02]} Ke5 {[%emt 0:00:01]} 52. Rg8 {[%emt 0:00:03]} e3 {[%emt 0:00:05]} 53. Rg7 {[%emt 0:00:10]} Kd4 {[%emt 0:00:03]} 54. Rd7+ {[%emt 0:00:01]} Kc3 {[%emt 0:00:02]} 55. Rc7+ {[%emt 0:00:03]} Kd2 {[%emt 0:00:01]} 56. Rd7+ {[%emt 0:00:02]} Ke1 {[%emt 0:00:02]} 57. Rd6 {[%emt 0:00:02]} g5 {[%emt 0:00:01]} (57... Rf2+ $142 58. Kg1 Rf3 59. Rxg6 e2 60. Rg8 Rd3 61. Re8 Rg3+ 62. Kh2 Kf2 63. Rf8+ Rf3 64. Rg8 e1=Q 65. Rg2+ Ke3 66. Rg8 Qd2+ 67. Rg2 Qd6+ 68. Kh1 Rxh3+ 69. Kg1 Qd1#) 58. Rd5 {[%emt 0:00:00]} e2 {[%emt 0:00:04] Black mates.} 59. Rxg5 {[%emt 0:00:07]} Rd4 {[%emt 0:00:02]} 60. Ra5 {[%emt 0:00:13]} Kd2 {[%emt 0:00:05]} 61. Ra2+ {[%emt 0:00:01] [#]} Ke3 $1 {[%emt 0:00:01]} 62. Ra3+ {[%emt 0:00:01] [#]} Rd3 $1 {[%emt 0:00:03]} 63. Ra1 {[%emt 0:00:04]} Rd1 {[%emt 0:00:01]} 64. Ra3+ {[%emt 0:00:02]} Kd4 {[%emt 0:00:11]} 65. Ra4+ {[%emt 0:00:01]} Kc5 {[%emt 0:00:06] Weighted Error Value: White=0.91/Black=0.35} 0-1